fUST/lending_fUST_20250718
["ID","MTS","AMOUNT","RATE_DAILY","PERIOD"]
[372989446,1752835840671,-558.52907695,0.00018546,2]
[372989448,1752835840682,-1013.76,0.00018546,2]
[372989450,1752835840692,-323.93,0.00018546,2]
[372989452,1752835840702,-460.0,0.00018546,2]
[372989454,1752835840711,-388.31306289,0.00018546,2]
[372989456,1752835840724,-71.68693711,0.00018546,2]
[372989458,1752835840733,-999.23,0.00018546,2]
[372989460,1752835840743,-460.0,0.00018546,2]
[372989462,1752835840752,-460.0,0.00018546,2]
[372989464,1752835840761,-460.0,0.00018546,2]
[372989466,1752835840771,-460.0,0.00018546,2]
[372989468,1752835840780,-460.0,0.00018546,2]
[372989470,1752835840790,-460.0,0.00018546,2]
[372989472,1752835840799,-460.0,0.00018546,2]
[372989474,1752835840808,-460.0,0.00018546,2]
[372989476,1752835840817,-460.0,0.00018546,2]
[372989478,1752835840826,-488.73512283,0.00018546,2]
[372989480,1752835840835,-460.0,0.00018546,2]
[372989482,1752835840845,-460.0,0.00018546,2]
[372989484,1752835840856,-460.0,0.00018546,2]
[372989486,1752835840865,-460.0,0.00018547,2]
[372989488,1752835840875,-460.0,0.00018547,2]
[372989490,1752835840885,-460.0,0.00018547,2]
[372989492,1752835840898,-460.0,0.00018547,2]
[372989494,1752835840908,-460.0,0.00018547,2]
[372989496,1752835840917,-460.0,0.00018547,2]
[372989498,1752835840926,-460.0,0.00018547,2]
[372989500,1752835840937,-460.0,0.00018547,2]
[372989502,1752835840946,-581.2,0.00018808,3]
[372989504,1752835840955,-460.0,0.00018818,2]
[372989506,1752835840966,-410.0353446,0.00018818,2]
[372989508,1752835840978,-840.94,0.00018818,2]
[372989510,1752835840988,-590.44,0.00018819,2]
[372989512,1752835840998,-460.0,0.00018819,2]
[372989514,1752835841007,-474.47,0.00018819,2]
[372989516,1752835841017,-750.45,0.00018819,2]
[372989518,1752835841026,-460.0,0.00018819,2]
[372989520,1752835841035,-460.0,0.00018819,2]
[372989522,1752835841045,-460.0,0.00018819,2]
[372989524,1752835841054,-460.0,0.00018819,2]
[372989526,1752835841063,-403.18,0.0001882,2]
[372989528,1752835841072,-276.89,0.0001882,2]
[372989530,1752835841082,-1013.76,0.0001882,2]
[372989532,1752835841091,-367.05573691,0.0001882,2]
[372989534,1752835841101,-999.23,0.0001882,2]
[372989537,1752835841112,-460.0,0.0001882,2]
[372989538,1752835841121,-460.0,0.0001882,2]
[372989541,1752835841130,-460.0,0.0001882,2]
[372989542,1752835841139,-460.0,0.0001882,2]
[372989545,1752835841149,-460.0,0.0001882,2]
[372989547,1752835841158,-460.0,0.0001882,2]
[372989549,1752835841167,-460.0,0.0001882,2]
[372989551,1752835841177,-460.0,0.0001882,2]
[372989552,1752835841186,-460.0,0.0001882,2]
[372989555,1752835841196,-460.0,0.0001882,2]
[372989556,1752835841205,-212.2,0.00018821,2]
[372989558,1752835841215,-460.0,0.00018821,2]
[372989560,1752835841224,-460.0,0.00018821,2]
[372989562,1752835841233,-460.0,0.00018821,2]
[372989564,1752835841242,-460.0,0.00018821,2]
[372989566,1752835841251,-460.0,0.00018821,2]
[372989568,1752835841261,-2410.88270172,0.000189,2]
[372989570,1752835841270,-719.00787882,0.000189,2]
[372989572,1752835841280,-202.0,0.00018904,3]
[372989574,1752835841289,-500.0,0.00018925,2]
[372989576,1752835841298,-460.0,0.00019092,2]
[372989578,1752835841307,-840.94,0.00019092,2]
[372989580,1752835841317,-590.44,0.00019093,2]
[372989582,1752835841327,-460.0,0.00019093,2]
[372989584,1752835841336,-474.47,0.00019093,2]
[372989587,1752835841346,-750.45,0.00019093,2]
[372989589,1752835841358,-460.0,0.00019093,2]
[372989591,1752835841368,-460.0,0.00019093,2]
[372989592,1752835841377,-364.69878748,0.00019093,2]
[372989595,1752835841386,-460.0,0.00019093,2]
[372989596,1752835841397,-1013.76,0.00019094,2]
[372989598,1752835841406,-999.23,0.00019094,2]
[372989601,1752835841416,-460.0,0.00019094,2]
[372989603,1752835841426,-460.0,0.00019094,2]
[372989604,1752835841435,-460.0,0.00019094,2]
[372989606,1752835841445,-460.0,0.00019094,2]
[372989609,1752835841455,-460.0,0.00019094,2]
[372989610,1752835841464,-460.0,0.00019094,2]
[372989612,1752835841473,-443.96,0.00019094,2]
[372989614,1752835841483,-460.0,0.00019094,2]
[372989616,1752835841493,-460.0,0.00019094,2]
[372989618,1752835841503,-460.0,0.00019094,2]
[372989621,1752835841512,-273.1,0.00019095,2]
[372989623,1752835841522,-460.0,0.00019095,2]
[372989625,1752835841532,-719.00787862,0.00019141,2]
[372989627,1752835841541,-206.589614,0.00019178,2]
[372989629,1752835841550,-666.0,0.00019178,2]
[372989630,1752835841559,-774.9,0.00019359,3]
[372989633,1752835841569,-460.0,0.00019366,2]
[372989634,1752835841578,-840.94,0.00019366,2]
[372989636,1752835841588,-590.44,0.00019367,2]
[372989639,1752835841598,-460.0,0.00019367,2]
[372989641,1752835841608,-474.47,0.00019367,2]
[372989643,1752835841618,-750.45,0.00019367,2]
[372989645,1752835841627,-460.0,0.00019367,2]
[372989647,1752835841637,-460.0,0.00019367,2]
[372989649,1752835841645,-257.95252582,0.00019367,2]
[372989650,1752835841655,-1013.76,0.00019368,2]
[372989652,1752835841665,-999.23,0.00019368,2]
[372989654,1752835841674,-460.0,0.00019368,2]
[372989656,1752835841683,-460.0,0.00019368,2]
[372989658,1752835841694,-460.0,0.00019368,2]
[372989660,1752835841703,-395.25,0.00019368,2]
[372989662,1752835841713,-460.0,0.00019368,2]
[372989664,1752835841722,-460.0,0.00019368,2]
[372989667,1752835841732,-460.0,0.00019368,2]
[372989668,1752835841742,-568.09,0.00019368,2]
[372989670,1752835841752,-173.24,0.00019369,2]
[372989672,1752835841762,-719.00787862,0.00019383,2]
[372989674,1752835841771,-1000.0,0.00019473,2]
[372989676,1752835841781,-719.00787862,0.00019624,2]
[372989678,1752835841790,-387.46,0.00019632,3]
[372989680,1752835841800,-1680.0,0.00019636,2]
[372989682,1752835841809,-460.0,0.0001964,2]
[372989684,1752835841819,-840.94,0.0001964,2]
[372989686,1752835841828,-590.44,0.00019641,2]
[372989688,1752835841838,-460.0,0.00019641,2]
[372989690,1752835841847,-474.47,0.00019641,2]
[372989692,1752835841858,-750.45,0.00019641,2]
[372989694,1752835841867,-460.0,0.00019641,2]
[372989696,1752835841877,-460.0,0.00019641,2]
[372989698,1752835841886,-1013.76,0.00019642,2]
[372989700,1752835841899,-999.23,0.00019642,2]
[372989702,1752835841909,-460.0,0.00019642,2]
[372989704,1752835841919,-322.7478463,0.00019642,2]
[372989706,1752835841928,-541.76767593,0.00019642,2]
[372989708,1752835841939,-460.0,0.00019642,2]
[372989710,1752835841948,-460.0,0.00019642,2]
[372989712,1752835841958,-460.0,0.00019642,2]
[372989715,1752835841968,-719.00787862,0.00019866,2]
[372989716,1752835841978,-460.0,0.00019914,2]
[372989719,1752835841987,-840.94,0.00019914,2]
[372989721,1752835841997,-590.44,0.00019915,2]
[372989723,1752835842006,-460.0,0.00019915,2]
[372989725,1752835842015,-474.47,0.00019915,2]
[372989727,1752835842025,-750.45,0.00019915,2]
[372989729,1752835842034,-460.0,0.00019915,2]
[372989731,1752835842043,-460.0,0.00019915,2]
[372989733,1752835842052,-1013.76,0.00019916,2]
[372989735,1752835842062,-999.23,0.00019916,2]
[372989737,1752835842071,-460.0,0.00019916,2]
[372989738,1752835842080,-533.36,0.00019916,2]
[372989740,1752835842089,-460.0,0.00019916,2]
[372989742,1752835842099,-460.0,0.00019916,2]
[372989744,1752835842108,-160.0,0.0002,3]
[372989746,1752835842117,-152.35234462,0.00020021,2]
[372989749,1752835842127,-160.0,0.00020068,2]
[372989751,1752835842136,-160.0,0.00020068,2]
[372989753,1752835842146,-839.30593155,0.00020068,2]
[372989755,1752835842155,-230.89969799,0.00020068,2]
[372989757,1752835842164,-160.0,0.00020069,2]
[372989759,1752835842175,-214.4881157,0.00020069,2]
[372989761,1752835842184,-12610.43989422,0.00020069,2]
[372989763,1752835842194,-215.63268315,0.00020069,2]
[372989765,1752835842203,-476.25663856,0.00020069,2]
[372989767,1752835842213,-525.75194068,0.00020069,2]
[372989769,1752835842222,-160.0,0.00020069,2]
[372989771,1752835842231,-160.0,0.00020069,2]
[372989773,1752835842241,-719.00787862,0.00020107,2]
[372989775,1752835842250,-160.0,0.00020126,2]
[372989777,1752835842259,-288.551204,0.00020187,2]
[372989779,1752835842269,-460.0,0.00020188,2]
[372989781,1752835842278,-840.94,0.00020188,2]
[372989783,1752835842287,-590.44,0.00020189,2]
[372989785,1752835842297,-460.0,0.00020189,2]
[372989787,1752835842306,-474.47,0.00020189,2]
[372989789,1752835842316,-750.45,0.00020189,2]
[372989791,1752835842325,-460.0,0.00020189,2]
[372989793,1752835842335,-460.0,0.00020189,2]
[372989795,1752835842345,-1013.76,0.0002019,2]
[372989797,1752835842357,-999.23,0.0002019,2]
[372989799,1752835842367,-460.0,0.0002019,2]
[372989801,1752835842376,-460.0,0.0002019,2]
[372989803,1752835842385,-460.0,0.0002019,2]
[372989805,1752835842395,-460.0,0.00020215,2]
[372989807,1752835842405,-155.78327691,0.00020215,2]
[372989809,1752835842414,-460.0,0.00020215,2]
[372989811,1752835842424,-460.0,0.00020215,2]
[372989813,1752835842434,-401.44634838,0.00020215,2]
[372989815,1752835842444,-1000.0,0.00020215,2]
[372989817,1752835842455,-460.0,0.00020215,2]
[372989819,1752835842464,-460.0,0.00020215,2]
[372989821,1752835842474,-1240.47,0.00020215,2]
[372989823,1752835842483,-460.0,0.00020215,2]
[372989825,1752835842494,-198.15983066,0.0002023,2]
[372989827,1752835842503,-719.00787862,0.00020348,3]
[372989829,1752835842513,-460.0,0.00020462,2]
[372989831,1752835842522,-840.94,0.00020462,2]
[372989833,1752835842532,-590.44,0.00020463,2]
[372989835,1752835842542,-460.0,0.00020463,2]
[372989837,1752835842551,-474.47,0.00020463,2]
[372989850,1752835842658,-750.45,0.00020463,2]
[372989852,1752835842667,-460.0,0.00020463,2]
[372989854,1752835842677,-414.04,0.00020463,2]
[372989856,1752835842686,-1013.76,0.00020464,2]
[372989858,1752835842696,-999.23,0.00020464,2]
[372989860,1752835842705,-460.0,0.00020464,2]
[372989862,1752835842716,-460.0,0.00020464,2]
[372989864,1752835842725,-460.0,0.00020464,2]
[372989866,1752835842735,-460.0,0.00020489,2]
[372989868,1752835842744,-460.0,0.00020489,2]
[372989870,1752835842753,-1240.47,0.00020489,2]
[372989872,1752835842763,-460.0,0.00020489,2]
[372989874,1752835842773,-719.00787862,0.0002059,3]
[372989876,1752835842782,-260.0,0.00020674,2]
[372989878,1752835842792,-460.0,0.00020736,2]
[372989880,1752835842801,-840.94,0.00020736,2]
[372989882,1752835842811,-590.44,0.00020737,2]
[372989884,1752835842820,-460.0,0.00020737,2]
[372989887,1752835842829,-474.47,0.00020737,2]
[372989890,1752835842839,-750.45,0.00020737,2]
[372989893,1752835842848,-460.0,0.00020737,2]
[372989896,1752835842859,-1013.76,0.00020738,2]
[372989898,1752835842868,-999.23,0.00020738,2]
[372989900,1752835842877,-460.0,0.00020738,2]
[372989902,1752835842888,-258.18964869,0.00020738,2]
[372989904,1752835842899,-460.0,0.00020738,2]
[372989906,1752835842908,-460.0,0.00020763,2]
[372989908,1752835842918,-460.0,0.00020763,2]
[372989910,1752835842927,-1240.47,0.00020763,2]
[372989912,1752835842937,-460.0,0.00020763,2]
[372989914,1752835842947,-719.00787862,0.00020831,4]
[372989917,1752835842957,-332.682,0.00020893,2]
[372989919,1752835842968,-500.96833344,0.00020894,2]
[372989921,1752835842978,-5000.0,0.00020979,2]
[372989922,1752835842988,-460.0,0.0002101,2]
[372989924,1752835842998,-840.94,0.0002101,2]
[372989927,1752835843007,-590.44,0.00021011,2]
[372989929,1752835843016,-460.0,0.00021011,2]
[372989931,1752835843026,-474.47,0.00021011,2]
[372989933,1752835843036,-750.45,0.00021011,2]
[372989935,1752835843045,-460.0,0.00021011,2]
[372989937,1752835843054,-1013.76,0.00021012,2]
[372989939,1752835843064,-999.23,0.00021012,2]
[372989941,1752835843073,-460.0,0.00021012,2]
[372989943,1752835843082,-460.0,0.00021012,2]
[372989945,1752835843091,-480.44803317,0.00021037,2]
[372989947,1752835843101,-460.0,0.00021037,2]
[372989949,1752835843113,-1240.47,0.00021037,2]
[372989951,1752835843122,-460.0,0.00021037,2]
[372989953,1752835843131,-719.00787862,0.00021072,4]
[372989955,1752835843141,-360.0,0.00021222,2]
[372989957,1752835843151,-460.0,0.00021284,2]
[372989959,1752835843160,-840.94,0.00021284,2]
[372989961,1752835843169,-590.44,0.00021285,2]
[372989963,1752835843179,-460.0,0.00021285,2]
[372989965,1752835843188,-474.47,0.00021285,2]
[372989967,1752835843197,-750.45,0.00021285,2]
[372989969,1752835843207,-460.0,0.00021285,2]
[372989971,1752835843216,-1013.76,0.00021286,2]
[372989973,1752835843226,-999.23,0.00021286,2]
[372989975,1752835843235,-460.0,0.00021286,2]
[372989977,1752835843245,-460.0,0.00021286,2]
[372989979,1752835843254,-460.0,0.00021311,2]
[372989981,1752835843263,-1240.47,0.00021311,2]
[372989983,1752835843273,-460.0,0.00021311,2]
[372989985,1752835843282,-719.00787862,0.00021314,5]
[372989987,1752835843291,-6177.12971976,0.00021331,2]
[372989989,1752835843301,-6177.12971976,0.0002142,2]
[372989991,1752835843317,-412.0,0.00021425,2]
[372989993,1752835843337,-719.00787862,0.00021555,5]
[372989996,1752835843346,-460.0,0.00021558,2]
[372989999,1752835843356,-840.94,0.00021558,2]
[372990002,1752835843366,-590.44,0.00021559,2]
[372990004,1752835843375,-460.0,0.00021559,2]
[372990006,1752835843385,-474.47,0.00021559,2]
[372990008,1752835843394,-750.45,0.00021559,2]
[372990010,1752835843403,-460.0,0.00021559,2]
[372990012,1752835843413,-1013.76,0.0002156,2]
[372990014,1752835843423,-999.23,0.0002156,2]
[372990016,1752835843432,-460.0,0.0002156,2]
[372990018,1752835843441,-460.0,0.0002156,2]
[372990020,1752835843451,-460.0,0.00021585,2]
[372990022,1752835843461,-1240.47,0.00021585,2]
[372990024,1752835843470,-460.0,0.00021585,2]
[372990026,1752835843480,-500.0,0.00021653,2]
[372990028,1752835843490,-6177.12971976,0.00021731,2]
[372990030,1752835843499,-2783.54883082,0.00021733,2]
[372990032,1752835843508,-220.0,0.0002177,2]
[372990034,1752835843517,-719.00787862,0.00021797,6]
[372990036,1752835843526,-460.0,0.00021832,2]
[372990038,1752835843536,-840.94,0.00021832,2]
[372990040,1752835843546,-590.44,0.00021833,2]
[372990042,1752835843555,-460.0,0.00021833,2]
[372990044,1752835843564,-474.47,0.00021833,2]
[372990046,1752835843573,-750.45,0.00021833,2]
[372990048,1752835843582,-483.92375499,0.00021833,2]
[372990050,1752835843592,-1013.76,0.00021834,2]
[372990052,1752835843601,-999.23,0.00021834,2]
[372990054,1752835843612,-460.0,0.00021834,2]
[372990056,1752835843622,-460.0,0.00021834,2]
[372990058,1752835843631,-460.0,0.00021859,2]
[372990060,1752835843640,-1240.47,0.00021859,2]
[372990062,1752835843649,-460.0,0.00021859,2]
[372990064,1752835843659,-1029.71219573,0.000219,2]
[372990066,1752835843668,-4906.464,0.00021918,2]
[372990068,1752835843677,-1654.27,0.00022,7]
[372990070,1752835843687,-3967.55,0.00022,7]
[372990072,1752835843697,-11957.07,0.00022,7]
[372990074,1752835843706,-160.0,0.00022,7]
[372990076,1752835843716,-476.25663856,0.00022,7]
[372990078,1752835843725,-173.0,0.00022,2]
[372990080,1752835843734,-719.00787862,0.00022038,6]
[372990082,1752835843744,-460.0,0.00022106,2]
[372990084,1752835843753,-840.94,0.00022106,2]
[372990086,1752835843762,-590.44,0.00022107,2]
[372990088,1752835843772,-460.0,0.00022107,2]
[372990090,1752835843781,-474.47,0.00022107,2]
[372990092,1752835843791,-750.45,0.00022107,2]
[372990094,1752835843805,-1013.76,0.00022108,2]
[372990097,1752835843818,-999.23,0.00022108,2]
[372990099,1752835843831,-460.0,0.00022108,2]
[372990102,1752835843843,-460.0,0.00022108,2]
[372990104,1752835843855,-460.0,0.00022133,2]
[372990106,1752835843867,-1240.47,0.00022133,2]
[372990108,1752835843880,-460.0,0.00022133,2]
[372990111,1752835843897,-6177.12971976,0.00022134,2]
[372990113,1752835843909,-179.0,0.00022192,6]
[372990115,1752835843922,-719.00787862,0.00022279,6]
[372990118,1752835843935,-6177.12971976,0.00022311,2]
[372990120,1752835843948,-460.0,0.0002238,2]
[372990123,1752835843961,-840.94,0.0002238,2]
[372990125,1752835843975,-590.44,0.00022381,2]
[372990127,1752835843987,-460.0,0.00022381,2]
[372990130,1752835843999,-474.47,0.00022381,2]
[372990132,1752835844012,-750.45,0.00022381,2]
[372990134,1752835844023,-1013.76,0.00022382,2]
[372990137,1752835844036,-999.23,0.00022382,2]
[372990139,1752835844049,-460.0,0.00022382,2]
[372990141,1752835844060,-604.83898298,0.00022382,2]
[372990144,1752835844072,-177.46512309,0.00022407,2]
[372990146,1752835844083,-1240.47,0.00022407,2]
[372990148,1752835844094,-460.0,0.00022407,2]
[372990150,1752835844107,-719.00787862,0.00022521,7]
[372990153,1752835844119,-1029.71219569,0.00022625,2]
[372990155,1752835844132,-460.0,0.00022654,2]
[372990157,1752835844144,-840.94,0.00022654,2]
[372990159,1752835844156,-590.44,0.00022655,2]
[372990162,1752835844168,-460.0,0.00022655,2]
[372990164,1752835844179,-474.47,0.00022655,2]
[372990166,1752835844193,-750.45,0.00022655,2]
[372990169,1752835844205,-1013.76,0.00022656,2]
[372990171,1752835844218,-999.23,0.00022656,2]
[372990173,1752835844231,-460.0,0.00022656,2]
[372990176,1752835844243,-6177.12971976,0.00022659,2]
[372990178,1752835844254,-1240.47,0.00022681,2]
[372990180,1752835844265,-460.0,0.00022681,2]
[372990182,1752835844276,-1736.24,0.00022739,2]
[372990184,1752835844287,-500.0,0.00022749,2]
[372990187,1752835844299,-719.00787862,0.00022762,7]
[372990189,1752835844313,-1736.24,0.00022839,7]
[372990191,1752835844331,-150.92781,0.00022858,2]
[372990194,1752835844345,-460.0,0.00022928,2]
[372990196,1752835844355,-840.94,0.00022928,2]
[372990198,1752835844368,-590.44,0.00022929,2]
[372990200,1752835844380,-341.4754483,0.00022929,2]
[372990203,1752835844391,-474.47,0.00022929,2]
[372990205,1752835844403,-750.45,0.00022929,2]
[372990207,1752835844417,-1013.76,0.0002293,2]
[372990210,1752835844429,-999.23,0.0002293,2]
[372990212,1752835844440,-460.0,0.0002293,2]
[372990214,1752835844450,-1736.24,0.00022939,6]
[372990216,1752835844460,-1240.47,0.00022955,2]
[372990218,1752835844471,-460.0,0.00022955,2]
[372990220,1752835844482,-6177.12971976,0.00022972,2]
[372990222,1752835844493,-200.0,0.00023,2]
[372990225,1752835844503,-719.00787862,0.00023003,8]
[372990227,1752835844514,-1736.24,0.00023039,2]
[372990229,1752835844529,-1736.24,0.00023139,3]
[372990231,1752835844545,-1654.27,0.000232,7]
[372990232,1752835844555,-3967.55,0.000232,7]
[372990233,1752835844566,-460.0,0.00023202,2]
[372990234,1752835844576,-840.94,0.00023202,2]
[372990235,1752835844590,-590.44,0.00023203,2]
[372990236,1752835844601,-474.47,0.00023203,2]
[372990237,1752835844614,-750.45,0.00023203,2]
[372990238,1752835844625,-1013.76,0.00023204,2]
[372990239,1752835844636,-999.23,0.00023204,2]
[372990240,1752835844647,-170.74,0.00023204,2]
[372990241,1752835844659,-1240.47,0.00023229,2]
[372990242,1752835844669,-460.0,0.00023229,2]
[372990243,1752835844680,-1736.24,0.00023239,5]
[372990244,1752835844691,-719.00787862,0.00023245,8]
[372990245,1752835844702,-6177.12971976,0.00023275,2]
[372990246,1752835844712,-11957.07,0.000233,7]
[372990247,1752835844723,-1736.24,0.00023339,4]
[372990248,1752835844733,-1029.71219569,0.0002335,2]
[372990249,1752835844744,-500.0,0.00023356,2]
[372990250,1752835844754,-500.78190628,0.000234,2]
[372990251,1752835844765,-1736.24,0.00023439,7]
[372990252,1752835844775,-171.8066763,0.00023476,2]
[372990254,1752835844786,-840.94,0.00023476,2]
[372990257,1752835844797,-590.44,0.00023477,2]
[372990259,1752835844808,-474.47,0.00023477,2]
[372990261,1752835844820,-750.45,0.00023477,2]
[372990263,1752835844830,-1013.76,0.00023478,2]
[372990265,1752835844843,-999.23,0.00023478,2]
[372990267,1752835844855,-719.00787862,0.00023486,9]
[372990269,1752835844868,-6177.12971976,0.00023502,2]
[372990272,1752835844884,-1240.47,0.00023503,2]
[372990274,1752835844899,-460.0,0.00023503,2]
[372990276,1752835844910,-1736.24,0.00023539,4]
[372990278,1752835844920,-200.0,0.00023561,2]
[372990280,1752835844931,-200.0,0.00023561,2]
[372990282,1752835844942,-200.0,0.00023561,2]
[372990284,1752835844953,-200.0,0.00023561,2]
[372990286,1752835844963,-200.0,0.00023561,2]
[372990288,1752835844975,-200.0,0.00023561,2]
[372990290,1752835844986,-200.0,0.00023561,2]
[372990293,1752835844998,-200.0,0.00023561,2]
[372990295,1752835845009,-200.0,0.00023561,2]
[372990297,1752835845019,-200.0,0.00023561,2]
[372990299,1752835845031,-200.0,0.00023561,2]
[372990301,1752835845042,-200.0,0.00023561,2]
[372990304,1752835845054,-200.0,0.00023561,2]
[372990306,1752835845065,-200.0,0.00023561,2]
[372990308,1752835845075,-200.0,0.00023561,2]
[372990310,1752835845085,-200.0,0.00023561,2]
[372990312,1752835845095,-200.0,0.00023561,2]
[372990314,1752835845104,-200.0,0.00023561,2]
[372990316,1752835845114,-200.0,0.00023561,2]
[372990318,1752835845124,-200.0,0.00023561,2]
[372990319,1752835845133,-200.0,0.00023561,2]
[372990322,1752835845143,-429.318869,0.00023562,2]
[372990338,1752835845291,-800.0,0.00023585,2]
[372990341,1752835845310,-1736.24,0.00023639,5]
[372990343,1752835845320,-719.00787862,0.00023728,9]
[372990345,1752835845330,-6177.12971976,0.00023733,2]
[372990347,1752835845339,-1736.24,0.00023739,6]
[372990349,1752835845349,-840.94,0.0002375,2]
[372990351,1752835845358,-590.44,0.00023751,2]
[372990353,1752835845368,-474.47,0.00023751,2]
[372990355,1752835845377,-750.45,0.00023751,2]
[372990357,1752835845386,-1013.76,0.00023752,2]
[372990359,1752835845396,-999.23,0.00023752,2]
[372990360,1752835845407,-309.52710723,0.00023753,2]
[372990363,1752835845416,-991.583453,0.00023753,3]
[372990364,1752835845426,-1240.47,0.00023776,2]
[372990367,1752835845436,-460.0,0.00023776,2]
[372990369,1752835845446,-151.0,0.00023792,2]
[372990371,1752835845455,-25000.0,0.00023792,2]
[372990373,1752835845465,-151.0,0.00023792,2]
[372990375,1752835845475,-151.0,0.00023792,2]
[372990377,1752835845484,-151.0,0.00023792,2]
[372990379,1752835845494,-2196.83371422,0.00023792,2]
[372990381,1752835845504,-151.0,0.00023792,2]
[372990383,1752835845514,-151.0,0.00023792,2]
[372990385,1752835845524,-151.0,0.00023792,2]
[372990387,1752835845534,-151.0,0.00023792,2]
[372990389,1752835845543,-151.0,0.00023792,2]
[372990391,1752835845552,-151.0,0.00023792,2]
[372990393,1752835845562,-151.0,0.00023792,2]
[372990395,1752835845572,-151.0,0.00023792,2]
[372990397,1752835845583,-151.0,0.00023792,2]
[372990399,1752835845592,-151.0,0.00023792,2]
[372990401,1752835845602,-151.0,0.00023792,2]
[372990402,1752835845611,-151.0,0.00023792,2]
[372990405,1752835845620,-151.0,0.00023792,2]
[372990407,1752835845630,-3801.642,0.00023792,2]
[372990409,1752835845640,-151.0,0.00023792,2]
[372990411,1752835845650,-151.0,0.00023792,2]
[372990413,1752835845659,-151.0,0.00023792,2]
[372990415,1752835845669,-151.0,0.00023792,2]
[372990417,1752835845678,-151.0,0.00023792,2]
[372990419,1752835845688,-151.0,0.00023792,2]
[372990420,1752835845697,-151.0,0.00023792,2]
[372990423,1752835845707,-151.0,0.00023792,2]
[372990425,1752835845716,-151.0,0.00023792,2]
[372990426,1752835845726,-151.0,0.00023792,2]
[372990428,1752835845735,-151.0,0.00023792,2]
[372990430,1752835845746,-151.0,0.00023792,2]
[372990432,1752835845756,-207.4,0.00023792,2]
[372990434,1752835845766,-151.0,0.00023792,2]
[372990436,1752835845776,-151.0,0.00023792,2]
[372990438,1752835845785,-151.0,0.00023792,2]
[372990440,1752835845795,-151.0,0.00023792,2]
[372990442,1752835845805,-159.14388846,0.00023792,2]
[372990444,1752835845814,-151.0,0.00023792,2]
[372990446,1752835845824,-151.0,0.00023792,2]
[372990448,1752835845833,-151.0,0.00023792,2]
[372990451,1752835845843,-184.17851102,0.00023792,2]
[372990453,1752835845853,-1000.0,0.00023795,5]
[372990454,1752835845863,-150.92781,0.000238,2]
[372990457,1752835845872,-1736.24,0.00023839,7]
[372990459,1752835845882,-500.0,0.00023845,2]
[372990460,1752835845898,-3942.302754,0.00023847,2]
[372990462,1752835845907,-150.92781,0.00023887,7]
[372990465,1752835845917,-2410.88270172,0.000239,2]
[372990467,1752835845927,-1662.9171888,0.00023902,2]
[372990469,1752835845938,-1000.0,0.00023904,2]
[372990470,1752835845947,-1736.24,0.00023939,7]
[372990473,1752835845957,-2055.93,0.00023942,2]
[372990474,1752835845967,-344.0,0.00023968,2]
[372990476,1752835845976,-719.00787862,0.00023969,10]
[372990478,1752835845986,-150.0,0.00023973,2]